Cogmind - Beta 13 @@@ ROGUE MODE // 2024.03.28 @ 07:42:00 // AFD2019/Pay2Buy Player: H3-RMN Result: Destroyed by UR-HNS(R) with Subdweller Laser Performance ------------- Evolutions (0) 0 Regions Visited (3) 600 Robots Destroyed (17) 85 Value Destroyed (416) 416 Prototype IDs (2) 40 Alien Tech Used (0) 0 Bonus (0) 0 TOTAL SCORE: 1141 Bonus ------- None Cogmind --------- Core Integrity 0/250 Matter 275/300 Energy 280/280 System Corruption 0% Temperature Cool (6) Movement Core (150) Ox2 Location -10/Subcaves Parts ------- > --- POWER (1) -------- Heavy Ion Engine > --- PROPULSION (2) --- (None) > --- UTILITY (2) ------ (None) > --- WEAPON (2) ------- (None) > --- INVENTORY (10) --- Light Nuclear Core Plasma Cutter Peak State ------------ > --- POWER ------------ Heavy Ion Engine > --- PROPULSION ------- Spiked Treads > --- UTILITY ---------- Heat Sink Medium Armor Plating > --- WEAPON ----------- Advanced Beam Cannon Grenade Launcher > --- INVENTORY -------- Plasma Cutter [Rating: 12] Favorites ----------- Power Heavy Ion Engine Engine Heavy Ion Engine Propulsion Spiked Treads Treads Spiked Treads Utility Heat Sink Device Heat Sink Protection Medium Armor Plating Weapon Advanced Beam Cannon Energy Gun Subdweller Laser Energy Cannon Advanced Beam Cannon Launcher Grenade Launcher Special Weapon Plasma Cutter Build | -11 -10 -10 -10 ------- Run | Yrd Mat Min Sub Slots Evolved . | . . . . Power . | . . . . Propulsion . | . . . . Utility . | . . . . Weapon . | . . . . Parts Attached 1 | . . . 1 Power . | . . . . Engine . | . . . . Core . | . . . . Reactor . | . . . . Propulsion . | . . . . Treads . | . . . . Leg . | . . . . Wheel . | . . . . Hover . | . . . . Flight . | . . . . Utility . | . . . . Device . | . . . . Storage . | . . . . Processor . | . . . . Hackware . | . . . . Protection . | . . . . Artifact . | . . . . Weapon 1 | . . . 1 Energy Gun . | . . . . Energy Cannon . | . . . . Ballistic Gun . | . . . . Ballistic Cannon . | . . . . Launcher 1 | . . . 1 Special Weapon . | . . . . Impact Weapon . | . . . . Slashing Weapon . | . . . . Piercing Weapon . | . . . . Special Melee Weapon . | . . . . Unidentified Prototypes . | . . . . Parts Lost 7 | . 1 . 6 Power . | . . . . Propulsion 1 | . . . 1 Utility 3 | . 1 . 2 Weapon 3 | . . . 3 Highest Loss Streak 5 | . 1 . 5 To Critical Strikes 1 | . . . 1 Average Slot Usage (%) 54 | . 46 71 68 Engine 10 | . 8 14 14 Treads 9 | . 8 14 12 Device 10 | . 8 14 14 Protection 9 | . 8 14 12 Energy Cannon 9 | . 8 14 12 Special Weapon 3 | . 5 . . Naked Turns 10 | . 10 . . Heaviest Build 20 | . 20 20 20 Greatest Support 20 | 3 20 20 20 Greatest Overweight (x) . | . . . . Average Overweight (x) . | . . . . Largest Inventory Capacity 10 | 10 10 10 10 Average Capacity 10 | 10 10 10 10 Most Carried 2 | . 2 2 2 Average Carried 1 | . . 2 1 Final Capacity 10 | 10 10 10 10 Final Carried 2 | . 2 2 2 Class Distribution -------------------- 100% | Mutant Dominant Class ---------------- Mutant | -10/Materials Mutant | -10/Mines Mutant | -10/Subcaves Resources | -11 -10 -10 -10 ----------- Run | Yrd Mat Min Sub Matter Collected 225 | . 220 . 5 Remotely . | . . . . Salvage Created 413 | . 350 . 63 Parts . | . . . . Haulers Intercepted 1 | . 1 . . Recyclers Shooed . | . . . . Parts Field Recycled . | . . . . Retrieved Matter . | . . . . Parts Self-Destructed . | . . . . Prevented . | . . . . Kills | -11 -10 -10 -10 ------- Run | Yrd Mat Min Sub Combat Hostiles Destroyed 14 | . 11 . 3 Cannons 9 | . 7 . 2 AOE 4 | . 3 . 1 Classes Destroyed 6 | . 5 . 1 Builder 1 | . 1 . . Hauler 1 | . 1 . . Watcher 1 | . 1 . . Swarmer 6 | . 6 . . Grunt 5 | . 5 . . Subdweller 3 | . . . 3 Best Kill Streak 4 | . 4 . 3 Combat Bots Only 4 | . 4 . 3 Max Kills in Single Turn 2 | . 2 . 1 Gunslinging . | . . . . Exploded 2 | . 2 . 1 Melee . | . . . . Uniques/NPCs Destroyed . | . . . . Combat | -11 -10 -10 -10 -------- Run | Yrd Mat Min Sub Hostile Shots Fired 91 | . 53 . 38 Missed 30 | . 20 . 10 Damage Taken 1104 | . 379 . 725 Core 253 | . 74 . 179 Absorbed by Shields . | . . . . Core Remaining (%) 100 | 100 . . . Volleys Fired 70 | . 40 3 27 Largest 1 | . 1 1 1 Hottest 68 | . 68 68 68 Shots Fired 70 | . 40 3 27 Gun 12 | . . . 12 Cannon 51 | . 38 3 10 Launcher 7 | . 2 . 5 Special . | . . . . Kinetic . | . . . . Thermal 63 | . 38 3 22 Explosive 7 | . 2 . 5 Electromagnetic . | . . . . Robot Hit Streak 19 | . 6 . 19 Robot Miss Streak 3 | . 3 . 1 Penetration Max . | . . . . Secondary Targets . | . . . . Shots Hit Robots 43 | . 24 . 19 Core Hits 20 | . 13 . 7 Critical Kills 1 | . 1 . . Critical Parts Destroyed . | . . . . Critical Strikes 2 | . 1 . 1 Meltdown 1 | . 1 . . Destroy 1 | . . . 1 Melee Attacks . | . . . . Impact . | . . . . Slashing . | . . . . Piercing . | . . . . Sneak Attacks . | . . . . Combat Hostiles . | . . . . Follow-up Attacks . | . . . . Damage Inflicted 1345 | . 659 . 686 Guns 185 | . . . 185 Cannons 553 | . 452 . 101 Explosions 607 | . 207 . 400 Melee . | . . . . Ramming . | . . . . Kinetic . | . . . . Thermal 738 | . 452 . 286 Explosive 607 | . 207 . 400 Electromagnetic . | . . . . Impact . | . . . . Slashing . | . . . . Piercing . | . . . . Highest Corruption . | . . . . Average Corruption . | . . . . Corruption Purged . | . . . . Corruption Blocked . | . . . . Overload Shots . | . . . . Overflow Damage 37 | . 37 . . Projectiles 12 | . 12 . . Explosions 25 | . 25 . . Melee . | . . . . Knockbacks . | . . . . Impact . | . . . . Kinetic . | . . . . Secondary . | . . . . Self-Inflicted Damage 161 | . 38 . 123 Shots 7 | . 2 . 5 Rammed . | . . . . Targets Rammed . | . . . . Kicked . | . . . . Crushed . | . . . . Highest Temperature 251 | . 251 32 . Average Temperature 60 | . 63 15 . Received Heat Transfer 225 | . 105 . 120 Effects 1 | . 1 . . Energy Bleed 1 | . 1 . . Siege Activations . | . . . . Robots Corrupted . | . . . . Combat Hostiles . | . . . . Parts Fried . | . . . . Impact Corruptions . | . . . . Robots Melted 1 | . 1 . . Combat Hostiles 1 | . 1 . . Parts Melted . | . . . . Heat Transferred 1224 | . 814 . 410 Parts Sabotaged . | . . . . Parts Stolen . | . . . . Parts Stripped . | . . . . Power Chain Reactions . | . . . . Alert | -11 -10 -10 -10 ------- Run | Yrd Mat Min Sub Peak Influence 207 | . 207 67 . Initial 67 | . . 67 . Average 66 | . 67 67 . Maximum Alert Level 1 | . 1 . . Low Security (%) 94 | 100 94 100 . Level 1 5 | . 5 . . Level 2 . | . . . . Level 3 . | . . . . Level 4 . | . . . . Level 5 . | . . . . High Security . | . . . . Max Security . | . . . . Squads Dispatched 2 | . 2 . . Investigation 1 | . 1 . . Extermination . | . . . . Reinforcement 1 | . 1 . . Assault . | . . . . Garrison . | . . . . Intercept . | . . . . Searches Triggered . | . . . . Construction Impeded . | . . . . Haulers Reinforced . | . . . . Active Scanning Responses . | . . . . Cargo Convoy Interrupts . | . . . . Stealth | -11 -10 -10 -10 --------- Run | Yrd Mat Min Sub Distress Signals 1 | . 1 . . Communications Jammed . | . . . . Distress Signals . | . . . . Times Spotted 19 | . 14 . 5 Peak Tracking Total 5 | . 5 . 2 Tactical Retreats . | . . . . Traps | -11 -10 -10 -10 ------- Run | Yrd Mat Min Sub Traps Triggered 1 | . 1 . . Indirectly . | . . . . Trap Hack Attempts . | . . . . Triggered . | . . . . Disarmed . | . . . . Reprogrammed . | . . . . Reused . | . . . . Traps Extracted . | . . . . Installed . | . . . . Triggered . | . . . . Machines | -11 -10 -10 -10 ---------- Run | Yrd Mat Min Sub Machines Disabled 3 | . 3 . . Max in Single Turn 1 | . 1 . . Machines Repaired . | . . . . Machines Dismantled 1 | . 1 . . Machines Sabotaged . | . . . . Overloaded Fab Kills . | . . . . Hacking | -11 -10 -10 -10 --------- Run | Yrd Mat Min Sub Machines Accessed 1 | . . . 1 Terminals . | . . . . Fabricators . | . . . . Repair Stations . | . . . . Recycling Units . | . . . . Scanalyzers . | . . . . Garrison Access . | . . . . Total Hacks 2 | . . . 2 Successful 2 | . . . 2 Failed . | . . . . Catastrophic . | . . . . Database Lockouts . | . . . . Manual . | . . . . Terminals . | . . . . Fabricators . | . . . . Repair Stations . | . . . . Recycling Units . | . . . . Scanalyzers . | . . . . Garrison Access . | . . . . Terminal Hacks 2 | . . . 2 Record 2 | . . . 2 Fabricator Hacks . | . . . . Repair Station Hacks . | . . . . Recycling Unit Hacks . | . . . . Scanalyzer . | . . . . Garrison Access Hacks . | . . . . Unauthorized Hacks . | . . . . Terminals . | . . . . Fabricators . | . . . . Repair Stations . | . . . . Recycling Units . | . . . . Scanalyzers . | . . . . Garrison Access . | . . . . Data Cores Recovered . | . . . . Used . | . . . . Hacking Detections . | . . . . Full Trace Events . | . . . . Feedback Events . | . . . . Feedback Blocked . | . . . . Robot Schematics Acquired . | . . . . Robots Built . | . . . . Authchips . | . . . . Time . | . . . . Total Robot Build Rating . | . . . . Part Schematics Acquired . | . . . . Parts Built . | . . . . Authchips . | . . . . Time . | . . . . Total Part Build Rating . | . . . . Parts Repaired . | . . . . Time . | . . . . Parts Recycled . | . . . . Recycled Matter . | . . . . Retrieved Matter . | . . . . Retrieved Components . | . . . . Parts Scanalyzed . | . . . . Part Schematics Acquired . | . . . . Parts Damaged . | . . . . Bothacking | -11 -10 -10 -10 ------------ Run | Yrd Mat Min Sub Used RIF Installer . | . . . . Robots Hacked . | . . . . Non-combat . | . . . . Combat . | . . . . Robot Hacks Applied . | . . . . Relay Couplers Released . | . . . . Fabnet Peak Effective % . | . . . . Robots Rewired . | . . . . Allies Hacked . | . . . . Hacks Repelled . | . . . . Allies | -11 -10 -10 -10 -------- Run | Yrd Mat Min Sub Total Allies . | . . . . Largest Group . | . . . . Highest-Rated Group . | . . . . Highest-Rated Ally . | . . . . Total Orders . | . . . . Ally Attacks . | . . . . Total Damage . | . . . . Kills . | . . . . Allies Corrupted . | . . . . Allies Melted . | . . . . Intel | -11 -10 -10 -10 ------- Run | Yrd Mat Min Sub Robot Analysis Total . | . . . . Derelict Logs Recovered . | . . . . Drone Launches . | . . . . Drone Recoveries . | . . . . Exploration | -11 -10 -10 -10 ------------- Run | Yrd Mat Min Sub Turns Passed 806 | 10 504 40 252 Spaces Moved 356 | 19 201 17 119 Core 114 | 19 95 . . Treads 242 | . 106 17 119 Legs . | . . . . Wheels . | . . . . Hover . | . . . . Flight . | . . . . Fastest Speed 50 | 50 50 160 160 Average Speed 124 | 50 108 160 160 Slowest Speed 160 | 50 160 160 160 Overloaded Moves . | . . . . Propulsion Burnouts . | . . . . Robots Hopped . | . . . . Cave-ins Triggered . | . . . . Exploration Rate (%) 13 | 4 32 3 16 Regions Visited 3 Branch Regions 2 Pre-discovered Areas . | . . . . Known Exits Taken . | . . . . Unknown Exits Taken 3 | 1 1 1 . Scrap Searched . | . . . . Spaces Dug 9 | . . . 9 Terrain Destroyed 40 | . 4 . 36 Melee . | . . . . Projectile . | . . . . AOE 40 | . 4 . 36 Terrain Rammed . | . . . . Walls Destroyed . | . . . . Machines Disabled . | . . . . Actions | -11 -10 -10 -10 --------- Run | Yrd Mat Min Sub Total 540 | 18 341 27 154 Wait 60 | . 45 8 7 Move 353 | 18 200 16 119 Hop . | . . . . Pick Up . | . . . . Fast Attach . | . . . . Attach 1 | . . . 1 Detach 2 | . 2 . . Swap . | . . . . Drop . | . . . . Fire 70 | . 40 3 27 Melee . | . . . . Ram . | . . . . Kick . | . . . . Crush . | . . . . Escape Stasis . | . . . . Rewire . | . . . . Trap . | . . . . Miscellaneous 54 | . 54 . . Route ------- -11/Scrapyard -10/Materials -10/Mines -10/Subcaves History --------- Turn | Location | Event 3 | -11/Scrapyard | Discovered new exit (range 15) 11 | -11/Scrapyard | Entered Materials 318 | -10/Materials | Build established: Mutant 468 | -10/Materials | Discovered new exit (range 8) 515 | -10/Materials | Entered Mines 550 | -10/Mines | Discovered new exit (range 3) 555 | -10/Mines | Entered Subcaves 661 | -10/Subcaves | Visited Clippyterm 719 | -10/Subcaves | Ambushed by Subdweller buried in earth 778 | -10/Subcaves | Disturbed a concealed Subdweller 789 | -10/Subcaves | Core integrity fell below 50% 804 | -10/Subcaves | Core integrity fell below 20% 807 | -10/Subcaves | Destroyed by UR-HNS(R) with Subdweller Laser Last Messages --------------- 00725_ 93-MXQ(R) destroyed. 00727_ 5V-H4A(R) destroyed. 00731_ Acquired 4 matter. 00732_ Acquired 1 matter. 00776_ Adv. Beam Cannon destroyed. [You open your loot box...] [Congratulations on your very own Lgt. Nuclear Core!] [Purchased: Sub. Laser] 00777_ MN-H7E(R) suffers critical hit (Destroy). 00778_ UR-HNS(R) angrily emerges from the Twisted Machinery. 00778_ Spk. Treads destroyed. 00782_ Med. Armor Plating destroyed. 00797_ MN-H7E(R) affixes Scrap Shield Fragment to Scrap Shield. 00800_ Sub. Laser destroyed. 00800_ UR-HNS(R) affixes Scrap Shield Fragment to Scrap Shield. 00806_ Heat Sink destroyed. Map ----- +----------------------------------------------------+ | | | | | | | | | | | | | | | | | | | | | ?????????????????????????????????????????????????? | | ?????????????????????????????????????????????????? | | ?????????????????????????????????????????????????? | | ?????????????????????????????????????????????????? | | ?????????????????????????????????????????????????? | | ?????????????????????????????????????????????????? | | ?????????????????????????????????????????????????? | | ?????????????????????????????????????????????????? | | ???????????????????########??????????????????????? | | ?????????????????##?" < <###????????????????????? | | ????????????????##<"? <<##???????????????????? | | ????????????????# ? <<#???????????????????? | | ???????????????##< ? R ##??????????????????? | | ???????????????# # R < #??????????????????? | | ???????????????#< << #?????????########## | | ???????????????# @ <#???????### # """""# | | ???????????????# ##### <#??????## "" "" | | ????????????????#" # <<#?????## | | ????????????????# ## <##?????# # | | ????????????????## ""## "######????## & &% ## | | ?????????????????#####" "#### #????## & #### | | ?????????????????### " ## #???## #??# | | ???????????????# ##### #??? | | ???????????# ### ## # #######??? | | ???????????# ??# ## #####????????? | | ???????????### # ??# ##????????????? | | ???????????????# ###?????????????? | | ??????????????# ##???????????????? | | ??????????????# #####????????????????? | | ??????????????# ##????????????????????? | | ??????????????##? #####?????????????????????? | | ????????????????# #??????????????????????????? | | ????????????????## ???????????????????????????? | | ?????????????????## ???????????????????????????? | | ??????????????????## ????????????????????????????? | | ???????????????????# ????????????????????????????? | | ?????????????????????????????????????????????????? | | ?????????????????????????????????????????????????? | | ?????????????????????????????????????????????????? | | ?????????????????????????????????????????????????? | +----------------------------------------------------+ Best States ------------- Heat Dissipation 35 Energy Generation 14 Energy Capacity 280 Matter Stores 300 Matter Capacity 300 Sight Range 16 Terrain Scan Density 10 Armor Coverage 225 Evasion (%) 50 Recoil Reduction 1 Item Schematics ----------------- None Robot Schematics ------------------ None Fabricated ------------ Nothing Alien Tech Used ----------------- None Achievements -------------- None Challenges ------------ None Cogshop Purchases (10) ------------------------ Plasma Cutter (699) Spk. Treads (846) Adv. Beam Cannon (876) Heat Sink (584) Hvy. Ion Engine (778) Med. Armor Plating (580) Grenade Launcher (860) Med. Armor Plating (606) Lgt. Nuclear Core (Loot Box) Sub. Laser (664) Game ------ Seed ChargeGravmagArmor Manual? 0 Play Time 00:09:28 Cumulative 670.8 hours Start 2024.03.28 @ 07:33:49 End 2024.03.28 @ 07:42:00 Sessions 1 Manual Loads 0 Difficulty Rogue Special Mode AFD2019/Pay2Buy Game No. 266 Rogue 238 Adventurer 3 Explorer 25 Win Type - Total 15 Types 10/2/1/1/0/1/0/0/0 Lore% 91 Gallery% 96 Achievement% 85 Wizard Run 0 Options --------- Layout 2 ASCII 0 Keyboard 0 Movement Numpad Keybinds 0 Fullscreen 2 Font 24/Smallcaps Map View 50x44 Zoom Use 0% Tactical HUD 1 Map Filters NONE Filters NONE Steam X RUN: 07895427-d8b0-45bb-bec8-3f6909689e0a